bitfinex-derivatives/quotes_SOLF0:USTF0_20240911
["timestamp","ask_amount","ask_price","bid_price","bid_amount"]
[1726073901855,3.785,132.1,132.07,3.7855]
[1726073902551,3.7846,132.11,132.02,31.95]
[1726073903062,3.7848,132.1,132.02,31.95]
[1726073903261,3.7848,132.1,132.04,3.7864]
[1726073903459,31.95,132.13,132.02,31.95]
[1726073903758,31.95,132.11,132.02,31.95]
[1726073904265,3.7851,132.09,132.02,31.95]
[1726073904463,3.77385765,132.1,132.02,31.95]
[1726073904656,7.55885765,132.1,132.02,31.95]
[1726073904960,31.95,132.14,132.08,3.7852]
[1726073905168,31.95,132.14,132.02,31.95]
[1726073905558,31.95,132.14,132.07,3.7854]
[1726073906161,3.7849,132.1,132.07,3.7854]
[1726073907158,7.65380336,132.1,132.07,3.7854]
[1726073907362,3.7846,132.11,132.08,3.7853]
[1726073908460,3.7848,132.1,132.08,3.7853]
[1726073908659,3.76931232,132.11,132.01,1.3419]
[1726073908867,3.7868,132.03,131.99,1.3907]
[1726073909058,31.95,132.04,131.94,2.8315]
[1726073909256,31.95,132.04,131.94,4.23]
[1726073909754,31.95,132.07,131.94,36.18]
[1726073909965,1.22364326,132.06,131.94,39.96363069]
[1726073910264,20.01,132.05,131.95,20.01]
[1726073911261,3.7867,132.04,131.99,3.7879]
[1726073911465,20.01,132.05,131.99,3.7879]
[1726073912266,32.01,132.05,131.99,3.7879]
[1726073912467,32.01,132.05,131.94,36.24]
[1726073913070,3.7873,132.02,131.97,3.7883]
[1726073913374,3.7873,132.02,131.94,36.24]
[1726073913564,32.01,132.02,131.94,2.825]
[1726073914075,3.7878,132.0,131.94,2.825]
[1726073914264,3.80910677,132.0,131.95,3.789]
[1726073914573,32.01,132.02,131.94,2.825]
[1726073914767,32.01,132.02,131.94,5.2158]
[1726073914966,32.01,132.0,131.91,1.4016]
[1726073915169,35.7304524,132.0,131.91,1.4016]
[1726073915373,32.01,131.98,131.91,1.4016]
[1726073915672,32.01,131.96,131.88,1.3451]
[1726073915974,3.7895,131.94,131.9,3.7905]
[1726073916769,3.7895,131.94,131.88,2.7467]
[1726073916770,3.7895,131.94,131.89,3.7908]
[1726073916966,35.7304524,132.0,131.88,34.7567]
[1726073917166,35.7304524,132.0,131.93,3.7896]
[1726073917368,35.7304524,132.0,131.88,34.7567]
[1726073918373,35.7304524,132.0,131.95,3.7889]
[1726073918774,3.788,131.99,131.95,3.7889]
[1726073919571,35.7304524,132.0,131.88,34.7567]
[1726073919974,35.7304524,132.0,131.9,32.01]
[1726073920569,35.7304524,132.0,131.88,2.7467]
[1726073920768,35.7304524,132.0,131.88,34.7567]
[1726073921370,35.7304524,132.0,131.9,32.01]
[1726073922475,3.7882,131.98,131.94,3.7892]
[1726073923876,3.7882,131.98,131.9,32.01]
[1726073924078,35.7304524,132.0,131.88,34.7567]
[1726073924580,3.789,131.96,131.88,34.7567]
[1726073924972,3.789,131.96,131.93,3.7895]
[1726073926082,3.7886,131.97,131.94,3.7894]
[1726073926570,35.7304524,132.0,131.88,34.7567]
[1726073926771,32.01,131.96,131.88,2.7467]
[1726073927178,32.01,131.96,131.89,3.7907]
[1726073927686,3.7901,131.92,131.88,6.5376]
[1726073928282,3.7904,131.91,131.87,3.7913]
[1726073928476,3.7904,131.91,131.84,2.7991]
[1726073928676,3.73664396,131.93,131.84,2.7991]
[1726073928877,3.7897,131.93,131.9,3.7904]
[1726073929481,7.6362858,131.93,131.9,3.7904]
[1726073929986,3.7897,131.93,131.9,3.7904]
[1726073931087,35.86758038,131.93,131.84,2.7991]
[1726073932178,3.7904,131.91,131.84,2.7991]
[1726073932679,3.7901,131.92,131.89,3.7908]
[1726073932983,32.01,131.96,131.84,34.8091]
[1726073933176,3.7892,131.95,131.84,34.8091]
[1726073933380,3.7892,131.95,131.87,32.01]
[1726073933580,33.3081,131.98,131.87,32.01]
[1726073935784,3.7888,131.96,131.93,3.7896]
[1726073936291,3.7887,131.97,131.93,3.7896]
[1726073936486,33.3081,131.98,131.93,3.7896]
[1726073937092,3.7889,131.96,131.93,3.7896]
[1726073937288,33.3081,131.98,131.92,3.7898]
[1726073937794,3.7891,131.95,131.92,3.7898]
[1726073937992,33.3081,131.98,131.92,3.7898]
[1726073938286,21.3281,131.98,131.92,3.7898]
[1726073938490,3.789,131.96,131.93,3.7896]
[1726073939291,3.7886,131.97,131.93,3.7896]
[1726073939588,3.7204524,132.0,131.9,20.03]
[1726073939886,7.60649166,132.01,131.93,20.03]
[1726073940082,3.7874,132.01,131.97,3.7883]
[1726073940791,3.7874,132.01,131.93,20.03]
[1726073941092,3.75009477,132.01,131.93,20.03]
[1726073941297,20.03,132.03,131.96,3.7885]
[1726073941487,3.7879,132.0,131.96,3.7885]
[1726073941690,7.6111618,132.0,131.93,20.03]
[1726073941889,3.7879,132.0,131.93,20.03]
[1726073942086,3.7879,132.0,131.91,34.7817]
[1726073942492,7.49261426,132.0,131.91,34.7817]
[1726073942793,7.49261426,132.0,131.97,3.7883]
[1726073943181,32.02,132.03,131.99,3.7879]
[1726073943383,35.85697135,132.03,131.99,3.7879]
[1726073943785,3.7873,132.02,131.99,3.7879]
[1726073944892,3.7873,132.02,132.0,3.7876]
[1726073945095,7.62387135,132.03,132.0,3.7876]
[1726073945490,3.83697135,132.03,132.0,3.7876]
[1726073945792,3.7868,132.03,132.0,3.7876]
[1726073945996,32.02,132.07,132.01,3.7873]
[1726073946191,32.02,132.07,131.97,2.746]
[1726073946192,35.79946191,132.07,131.97,2.746]
[1726073946590,35.79946191,132.07,132.02,3.7869]
[1726073947092,3.7862,132.06,132.02,3.7869]
[1726073947298,33.3172,132.09,131.98,32.02]
[1726073947487,35.87638499,132.09,131.98,32.02]
[1726073947686,7.64148499,132.09,132.05,3.7861]
[1726073948096,3.85638499,132.09,132.0,32.02]
[1726073948403,3.7855,132.08,132.0,32.02]
[1726073948693,3.76931818,132.07,132.0,32.02]
[1726073949094,3.76931818,132.07,132.05,3.7862]
[1726073949290,3.76931818,132.07,132.0,32.02]
[1726073950297,32.02,132.11,132.03,3.7866]
[1726073950690,35.73704545,132.11,132.03,3.7866]
[1726073950895,3.7855,132.08,132.04,3.7864]
[1726073951098,32.02,132.11,132.0,32.02]
[1726073951289,35.89234848,132.11,132.01,1.3621]
[1726073951489,35.89234848,132.11,132.04,3.7863]
[1726073951490,3.7853,132.09,132.04,3.7863]
[1726073951689,35.89234848,132.11,132.01,1.3621]
[1726073951891,32.02,132.09,132.01,1.3621]
[1726073952196,3.7857,132.07,132.03,3.7867]
[1726073952399,7.59298531,132.07,132.03,3.7867]
[1726073952590,3.7857,132.07,132.03,3.7867]
[1726073953291,7.59601508,132.07,132.03,3.7867]
[1726073953490,3.7859,132.06,132.03,3.7867]
[1726073953792,35.74964745,132.09,132.02,3.787]
[1726073954299,3.7861,132.06,132.03,3.7868]
[1726073954500,35.74964745,132.09,132.01,1.3621]
[1726073954797,3.7855,132.08,132.01,1.3621]
[1726073955092,39.53484745,132.09,132.01,1.3621]
[1726073955300,33.3159,132.13,132.02,32.02]
[1726073955490,37.07044875,132.13,132.03,1.4108]
[1726073955690,3.7845,132.11,132.03,2.7931]
[1726073955903,37.07044875,132.13,132.03,2.7931]
[1726073956401,3.7843,132.12,132.08,3.7852]
[1726073956998,3.7847,132.11,132.07,3.7856]
[1726073957198,3.7847,132.11,132.03,2.7931]
[1726073957694,37.07044875,132.13,132.03,2.7931]
[1726073957894,5.05044875,132.13,132.03,2.7931]
[1726073958089,3.7846,132.11,132.07,3.7854]
[1726073958590,3.7848,132.1,132.07,3.7854]
[1726073959393,3.7846,132.11,132.07,3.7854]
[1726073960992,3.7846,132.11,132.08,3.7853]
[1726073962300,3.7846,132.11,132.07,3.7855]
[1726073962497,3.7849,132.1,132.03,2.7931]
[1726073962692,19.98,132.12,132.03,2.7931]
[1726073962890,19.98,132.1,132.03,2.7931]
[1726073963398,3.7856,132.08,132.04,3.7864]
[1726073963796,19.98,132.1,132.04,3.7864]
[1726073964193,19.98,132.1,132.03,2.7931]
[1726073964392,19.98,132.12,132.03,2.7931]
[1726073964797,5.05044875,132.13,132.04,19.98]
[1726073965505,3.7844,132.12,132.08,3.7851]
[1726073965894,5.013341,132.13,132.04,19.98]
[1726073966197,3.7847,132.11,132.07,3.7855]
[1726073969899,3.7843,132.12,132.09,3.7851]
[1726073970098,19.98,132.16,132.06,19.98]
[1726073970291,1.22283173,132.15,132.06,19.98]
[1726073970499,3.7837,132.14,132.11,3.7844]
[1726073971001,7.50899719,132.14,132.11,3.7844]
[1726073971200,3.7841,132.13,132.09,3.785]
[1726073971500,19.98,132.14,132.07,1.3837]
[1726073971700,23.78290754,132.14,132.07,1.3837]
[1726073972298,3.7846,132.11,132.08,3.7852]
[1726073972504,19.98,132.12,132.04,19.98]
[1726073972698,19.98,132.12,132.03,2.7931]
[1726073972898,3.7849,132.1,132.06,3.7857]
[1726073973307,19.98,132.12,132.03,2.7931]
[1726073974601,3.7849,132.1,132.03,2.7931]
[1726073975199,3.7851,132.09,132.06,3.7857]
[1726073976098,19.98,132.12,132.06,3.7857]
[1726073976099,3.7849,132.1,132.06,3.7857]
[1726073976411,19.98,132.12,132.03,2.7931]
[1726073976604,3.7848,132.1,132.03,2.7931]
[1726073976909,3.7848,132.1,132.07,3.7854]
[1726073977109,19.98,132.12,132.03,2.7931]
[1726073977604,3.7851,132.09,132.05,3.786]
[1726073978605,3.7854,132.08,132.05,3.786]
[1726073979207,19.98,132.12,132.03,2.7931]
[1726073979908,19.98,132.12,132.05,3.786]
[1726073980500,3.7853,132.09,132.05,3.786]
[1726073980896,3.7854,132.08,132.05,3.786]
[1726073981102,19.98,132.12,132.03,2.7931]
[1726073981411,3.7852,132.09,132.03,2.7931]
[1726073981602,3.7852,132.09,132.05,3.786]
[1726073981801,19.98,132.12,132.05,3.786]
[1726073982009,3.7853,132.09,132.05,3.786]
[1726073982204,19.98,132.12,132.05,3.786]
[1726073982707,3.7855,132.08,132.05,3.786]
[1726073986600,19.98,132.12,132.04,3.7863]
[1726073987707,3.7858,132.07,132.04,3.7863]
[1726073988507,19.98,132.12,132.03,22.7731]
[1726073989018,3.7849,132.1,132.07,3.7855]
[1726073989409,3.7851,132.09,132.06,3.7858]
[1726073989714,19.98,132.12,132.03,22.7731]
[1726073990101,3.7854,132.08,132.05,3.786]
[1726073991614,3.7854,132.08,132.06,3.7859]
[1726073991815,3.7851,132.09,132.03,22.7731]
[1726073992403,3.7855,132.08,132.05,3.786]
[1726073992613,19.98,132.12,132.05,3.786]
[1726073993014,3.7855,132.08,132.05,3.786]
[1726073994218,3.7852,132.09,132.06,3.7858]
[1726073995214,3.7849,132.1,132.07,3.7856]
[1726073995520,19.98,132.12,132.03,22.7731]
[1726073995825,3.7852,132.09,132.06,3.7858]
[1726073997317,19.98,132.12,132.03,22.7731]
[1726073998114,3.7855,132.08,132.05,3.7861]
[1726073998317,19.98,132.12,132.05,3.7861]
[1726073999323,3.7856,132.07,132.04,3.7863]
[1726073999620,19.98,132.12,132.01,19.98]
[1726073999826,3.7867,132.04,131.99,4.1075]
[1726074000022,3.74782607,132.05,131.99,4.1075]
[1726074000222,19.98,132.06,131.99,4.1075]
[1726074000425,23.76607692,132.06,132.0,3.7876]
[1726074000721,19.98,132.08,131.99,4.1075]
[1726074001023,3.7867,132.04,131.99,4.1075]
[1726074001225,7.5955002,132.04,131.99,4.1075]
[1726074001432,7.5955002,132.04,132.01,3.7873]
[1726074002025,19.98,132.08,131.99,4.1075]
[1726074002320,19.98,132.07,131.99,2.7059]
[1726074002523,19.98,132.05,131.97,3.7883]
[1726074002717,3.81485974,132.07,131.94,24.1796]
[1726074002718,19.98,132.03,131.94,24.1796]
[1726074003020,3.7887,131.97,131.94,2.8106]
[1726074003521,3.77871275,131.98,131.94,2.8106]
[1726074003725,3.7883,131.98,131.94,6.5997]
[1726074003920,19.98,132.03,131.94,2.8106]
[1726074004124,3.7874,132.01,131.97,3.7883]
[1726074004622,3.7872,132.02,131.98,3.788]
[1726074004925,19.98,132.06,131.97,19.98]
[1726074005118,19.98,132.06,131.94,22.7906]
[1726074005426,19.98,132.06,131.98,3.7882]
[1726074005616,19.98,132.05,131.98,3.7882]
[1726074005824,3.787,132.03,131.98,3.7882]
[1726074006019,3.787,132.03,131.94,22.7906]
[1726074006020,3.787,132.03,131.99,3.7879]
[1726074006216,7.59882692,132.06,131.98,19.98]
[1726074006426,228.0,132.08,131.98,19.98]
[1726074006628,228.0,132.08,131.99,1.3345]
[1726074006629,247.98,132.08,131.99,1.3345]
[1726074006828,3.7863,132.05,131.99,1.3345]
[1726074007127,247.98,132.08,131.99,1.3345]
[1726074007128,3.7673329,132.04,132.0,3.7875]
[1726074007431,19.98,132.08,131.99,1.3345]
[1726074007632,19.98,132.08,132.01,3.7873]
[1726074007829,3.7868,132.03,131.99,1.3345]
[1726074008028,7.60791947,132.03,131.97,19.98]
[1726074008330,3.787,132.03,131.96,1.319]
[1726074008529,23.86210284,132.06,131.96,1.319]
[1726074008723,23.86210284,132.06,131.99,3.7879]
[1726074008931,3.787,132.03,131.99,3.7879]
[1726074009727,23.86210284,132.06,131.96,13.6656021]
[1726074010326,3.7868,132.04,132.0,3.7876]
[1726074010532,23.86210284,132.06,132.0,3.7876]
[1726074011131,23.86210284,132.06,132.01,3.7873]
[1726074011132,3.88210284,132.06,132.01,3.7873]
[1726074011322,19.98,132.07,132.01,3.7873]
[1726074011525,23.79421427,132.07,132.01,3.7873]
[1726074011926,3.7861,132.06,131.99,19.98]
[1726074012126,19.98,132.09,132.0,2.8044]
[1726074012332,21.2774,132.11,132.04,3.7864]
[1726074012631,3.7851,132.09,132.01,19.98]
[1726074012832,3.80290754,132.14,132.01,19.98]
[1726074013032,19.98,132.16,132.05,19.98]
[1726074013231,3.7838,132.14,132.06,2.8118]
[1726074013532,23.70358954,132.16,132.06,2.8118]
[1726074013533,3.72358954,132.16,132.09,19.98]
[1726074013728,1.2987,132.18,132.09,19.98]
[1726074014336,5.07454248,132.18,132.09,19.98]
[1726074014526,5.07454248,132.18,132.13,3.7837]
[1726074014728,3.77584248,132.18,132.11,19.98]
[1726074014934,3.77584248,132.18,132.06,22.7918]
[1726074014935,19.98,132.18,132.06,2.8118]
[1726074015133,19.98,132.15,132.06,2.8118]
[1726074016030,3.784,132.13,132.06,2.8118]
[1726074016439,19.98,132.15,132.06,2.8118]
[1726074016627,19.98,132.13,132.06,2.8118]
[1726074017839,3.7845,132.11,132.07,3.7854]
[1726074021940,3.7848,132.1,132.06,6.5976]
[1726074022135,3.7848,132.1,132.06,2.8118]
[1726074022341,19.98,132.13,132.06,2.8118]
[1726074023035,3.7846,132.11,132.07,3.7855]
[1726074023439,3.86709579,132.11,132.03,19.98]
[1726074023739,19.98,132.09,132.02,1.3716]
[1726074024132,3.7859,132.07,132.02,1.3716]
[1726074024641,3.7859,132.06,132.02,5.1586]
[1726074024840,23.85731919,132.09,132.02,3.787]
[1726074025038,19.98,132.07,132.01,2.7839]
[1726074025429,1.2965,132.13,132.01,1.4411]
[1726074025630,1.22336492,132.12,132.01,1.4411]
[1726074025839,24.96453746,132.12,132.02,21.2986]
[1726074026143,24.96453746,132.12,132.01,1.4411]
[1726074026144,19.98,132.08,132.01,1.4411]
[1726074026540,3.82669292,132.07,132.01,1.4411]
[1726074026748,19.98,132.1,132.01,1.4411]
[1726074027232,21.2765,132.13,132.02,19.98]
[1726074027440,3.7854,132.08,132.03,5.1142]
[1726074027745,19.98,132.11,132.03,1.3275]
[1726074028243,19.98,132.08,132.03,1.3275]
[1726074028445,19.98,132.08,132.01,1.4411]
[1726074028934,3.7857,132.07,132.02,3.787]
[1726074029330,3.7079625,132.06,132.01,1.4411]
[1726074029545,19.98,132.06,132.01,1.4411]
[1726074029743,19.98,132.06,131.99,1.3977]
[1726074029744,23.82507,132.06,131.99,1.3977]
[1726074029936,3.84507,132.06,131.99,1.3977]
[1726074030141,19.98,132.07,131.99,1.3977]
[1726074030744,19.98,132.07,132.01,3.7871]
[1726074030745,3.7862,132.05,132.01,3.7871]
[1726074031059,5.03456998,132.13,132.0,19.98]
[1726074031340,3.7859,132.06,132.02,3.787]
[1726074031640,5.03456998,132.13,132.0,19.98]
[1726074031841,3.7856,132.08,132.04,3.7864]
[1726074032143,19.98,132.1,132.01,1.4313]
[1726074032441,19.98,132.16,132.05,19.98]
[1726074032641,19.98,132.1,132.01,1.4313]
[1726074032839,23.71352522,132.1,132.01,1.4313]
[1726074033147,23.71352522,132.1,132.04,3.7864]
[1726074033342,19.98,132.08,132.01,1.4313]
[1726074033646,19.98,132.06,132.01,1.4313]
[1726074034046,3.7865,132.04,132.01,1.4313]
[1726074034245,3.7865,132.04,132.0,3.7874]
[1726074034839,23.74458112,132.05,131.99,5.1855]
[1726074035147,19.98,132.05,131.99,1.3977]
[1726074035338,3.7865,132.04,132.01,3.7873]
[1726074035536,7.57893672,132.04,131.99,1.3977]
[1726074036047,3.7869,132.03,131.99,1.3977]
[1726074036241,3.79243672,132.04,131.99,1.3977]
[1726074036846,3.79243672,132.04,132.0,3.7875]
[1726074037543,3.7868,132.03,131.99,5.1856]
[1726074037850,3.707571,132.04,131.99,1.3977]
[1726074038041,7.494171,132.04,132.0,3.7874]
[1726074039045,19.98,132.07,131.99,1.3977]
[1726074039251,19.98,132.09,131.99,21.3777]
[1726074039445,3.7855,132.08,132.04,3.7863]
[1726074039645,3.7855,132.08,131.99,21.3777]
[1726074039845,19.98,132.11,132.01,19.98]
[1726074040548,3.7853,132.09,132.05,3.7861]
[1726074040750,25.08072655,132.13,132.01,19.98]
[1726074041346,19.98,132.09,131.99,21.3777]
[1726074041546,19.98,132.09,131.99,1.3977]
[1726074041845,5.10072655,132.13,131.99,1.3977]
[1726074041846,19.98,132.07,131.99,1.3977]
[1726074042045,3.72017941,132.06,131.99,21.3777]
[1726074042238,3.7858,132.07,132.03,3.7866]
[1726074042442,3.80311938,132.06,132.03,3.7866]
[1726074042846,3.7855,132.08,132.04,3.7865]
[1726074043045,5.10072655,132.13,132.03,19.98]
[1726074043344,3.80472655,132.13,132.05,19.98]
[1726074043549,3.7839,132.14,132.06,1.4306]
[1726074043750,3.7839,132.14,132.07,19.98]
[1726074044340,3.7834,132.15,132.07,19.98]
[1726074044538,3.7834,132.15,132.06,1.4306]
[1726074044539,21.2756,132.19,132.12,3.7842]
[1726074044745,1.22257599,132.18,132.09,19.98]
[1726074045047,7.58536194,132.17,132.1,1.4443]
[1726074045251,3.80236194,132.17,132.12,3.784]
[1726074045453,3.7835,132.15,132.1,1.4443]
[1726074045955,3.7839,132.14,132.1,1.4443]
[1726074047254,3.7839,132.14,132.1,5.229]
[1726074047444,3.7841,132.13,132.1,1.4443]
[1726074047647,1.2956,132.19,132.1,1.4443]
[1726074047860,1.22256874,132.18,132.1,1.4443]
[1726074048063,3.7831,132.16,132.1,1.4443]
[1726074048454,21.2756,132.19,132.1,1.4443]
[1726074048659,19.98,132.21,132.1,21.4243]
[1726074048956,1.22243579,132.2,132.13,3.7838]
[1726074049261,3.7825,132.18,132.13,3.7838]
[1726074049758,19.98,132.21,132.13,3.7838]
[1726074049960,1.22244046,132.2,132.13,3.7838]
[1726074050149,3.7831,132.16,132.12,3.7842]
[1726074050345,3.77015671,132.17,132.1,1.4443]
[1726074050556,19.98,132.19,132.1,1.4443]
[1726074051153,19.98,132.19,132.12,3.784]
[1726074051661,3.7833,132.15,132.11,3.7844]
[1726074052455,3.7833,132.15,132.12,3.7842]
[1726074053354,3.7833,132.15,132.11,3.7844]
[1726074053951,3.7837,132.14,132.1,5.2289]
[1726074054352,19.98,132.17,132.1,1.4443]
[1726074054557,3.7834,132.15,132.11,3.7843]
[1726074055057,3.7837,132.14,132.11,3.7843]
[1726074055563,19.98,132.19,132.1,5.2289]
[1726074055758,3.7837,132.14,132.1,1.4443]
[1726074056360,3.7837,132.14,132.11,3.7843]
[1726074058158,3.8727295,132.16,132.12,3.7841]
[1726074058462,19.98,132.19,132.1,1.4443]
[1726074058656,3.7826,132.18,132.15,3.7833]
[1726074058858,19.98,132.2,132.1,21.4243]
[1726074059264,3.7823,132.19,132.12,19.98]
[1726074059556,3.7823,132.19,132.13,1.3813]
[1726074059761,3.7823,132.19,132.16,3.7829]
[1726074059963,19.98,132.22,132.13,1.3813]
[1726074059964,3.782,132.2,132.13,1.3813]
[1726074060264,275.4262,132.21,132.13,1.3813]
[1726074060763,275.4262,132.21,132.14,19.98]
[1726074060960,275.4262,132.21,132.14,1.3673]
[1726074061469,295.4062,132.21,132.13,1.3813]
[1726074062058,3.782,132.2,132.13,21.3613]
[1726074062253,275.4262,132.21,132.13,21.3613]
[1726074062460,275.4262,132.21,132.15,19.98]
[1726074062665,275.4262,132.21,132.16,1.3868]
[1726074063366,3.7821,132.2,132.16,5.1696]
[1726074063556,275.4262,132.21,132.13,1.3813]
[1726074063762,275.4262,132.21,132.14,1.3868]
[1726074063963,275.4262,132.21,132.14,2.8042]
[1726074064162,275.4262,132.21,132.17,3.7828]
[1726074065168,279.208,132.21,132.17,3.7828]
[1726074065868,279.208,132.21,132.18,3.7825]
[1726074066068,275.4262,132.21,132.18,3.7825]
[1726074066572,275.4262,132.21,132.17,19.98]
[1726074067461,273.2584,132.21,132.19,19.98]
[1726074067660,268.922,132.21,132.2,3.7819]
[1726074067861,260.249,132.21,132.2,3.7819]
[1726074068165,255.9127,132.21,132.2,3.7819]
[1726074068562,255.9127,132.21,132.19,3.7821]
[1726074069462,255.9127,132.21,132.2,3.7819]
[1726074070369,255.9127,132.21,132.14,1.4174]
[1726074070565,255.9127,132.21,132.13,19.98]
[1726074070771,3.783,132.17,132.06,190.66907599]
[1726074070967,3.783,132.17,132.1,19.98]
[1726074071265,1.3507,132.2,132.11,3.7843]
[1726074071266,3.7831,132.16,132.11,3.7843]
[1726074071662,19.98,132.17,132.09,19.98]
[1726074071880,3.7831,132.16,132.11,3.7845]
[1726074072671,3.7831,132.16,132.12,3.7841]
[1726074072864,3.7829,132.17,132.09,19.98]
[1726074073472,22.6733,132.19,132.09,19.98]
[1726074073670,19.98,132.18,132.09,19.98]
[1726074074467,19.98,132.16,132.07,22.8153]
[1726074075565,19.98,132.18,132.08,19.98]
[1726074075766,3.7834,132.15,132.08,19.98]
[1726074076273,19.98,132.18,132.08,19.98]
[1726074076573,19.98,132.18,132.07,2.8353]
[1726074077371,3.7835,132.15,132.1,3.7847]
[1726074077569,19.98,132.14,132.04,19.98]
[1726074077763,19.98,132.12,132.02,20.8504]
[1726074077968,3.785,132.1,132.05,3.786]
[1726074078272,19.98,132.12,131.96,170.80610444]
[1726074078573,19.98,132.12,132.05,3.786]
[1726074078574,23.7648,132.1,132.05,3.786]
[1726074078775,23.69641233,132.12,132.05,3.786]
[1726074079074,3.7848,132.1,132.05,3.786]
[1726074079271,23.69641233,132.12,132.05,3.786]
[1726074079467,19.98,132.12,132.06,3.7859]
[1726074080368,3.785,132.1,132.05,3.7861]
[1726074080766,3.785,132.1,131.97,0.8694]
[1726074080767,3.7853,132.09,132.04,3.7864]
[1726074081169,3.7853,132.09,132.02,19.98]
[1726074081373,3.7848,132.1,132.02,19.98]
[1726074081571,19.98,132.12,132.02,19.98]
[1726074082473,19.98,132.12,132.06,3.7856]
[1726074082974,3.7848,132.1,132.07,3.7856]
[1726074083175,3.7848,132.1,132.02,19.98]
[1726074083366,19.98,132.12,131.89,230.10834392]
[1726074083569,19.98,132.06,131.95,22.7502]
[1726074083771,19.98,132.08,131.98,19.98]
[1726074084172,3.7861,132.06,132.02,3.7869]
[1726074084371,19.98,132.08,131.98,19.98]
[1726074084578,19.98,132.06,132.0,3.7876]
[1726074084777,19.98,132.06,131.96,19.98]
[1726074085276,19.98,132.04,131.95,2.7702]
[1726074085670,3.7872,132.02,131.98,3.7879]
[1726074085870,19.98,132.04,131.95,2.7702]
[1726074086176,1.3097,132.05,131.95,2.7702]
[1726074086177,1.3097,132.05,131.96,32.0]
[1726074086372,2.8291,132.07,131.98,32.0]
[1726074087070,2.8291,132.07,131.98,35.7957413]
[1726074087975,3.786,132.06,132.02,3.7869]
[1726074088174,3.786,132.06,131.98,35.7957413]
[1726074088370,2.8291,132.07,131.98,35.7957413]
[1726074088873,6.615,132.07,132.03,3.7866]
[1726074089481,6.615,132.07,131.98,35.7957413]
[1726074089980,2.8291,132.07,132.04,3.7863]
[1726074090370,3.7854,132.08,132.0,32.0]
[1726074090670,3.7852,132.09,132.05,3.7859]
[1726074090877,31.77667512,132.26,132.06,32.0]
[1726074091076,1.3908,132.16,132.06,32.0]
[1726074091384,1.4277,132.19,132.11,32.0]
[1726074091882,5.2101,132.19,132.11,32.0]
[1726074092069,1.4277,132.19,132.11,32.0]
[1726074093077,1.4277,132.19,132.07,3.577]
[1726074093078,33.3908,132.23,132.13,32.0]
[1726074093282,2.8352,132.23,132.15,32.0]
[1726074093879,34.8352,132.23,132.13,32.0]
[1726074094081,34.8352,132.23,132.1,32.0]
[1726074094583,34.8352,132.23,132.13,32.0]
[1726074094787,3.7816,132.22,132.17,3.7826]
[1726074094972,34.8352,132.23,132.13,32.0]
[1726074095173,34.8352,132.23,132.15,3.7831]
[1726074095674,3.7821,132.2,132.16,3.783]
[1726074096280,34.8352,132.23,132.13,32.0]
[1726074096885,3.7822,132.2,132.15,3.7833]
[1726074097277,34.8352,132.23,132.13,32.0]
[1726074097472,3.7823,132.19,132.15,3.7831]
[1726074097881,34.8352,132.23,132.13,32.0]